fUSD/lending_fUSD_20240515
["ID","MTS","AMOUNT","RATE_DAILY","PERIOD"]
[327068710,1715777443008,-500.0,0.0001178,2]
[327068712,1715777443017,-500.0,0.0001178,2]
[327068714,1715777443027,-500.0,0.0001178,2]
[327068716,1715777443037,-500.0,0.0001178,2]
[327068718,1715777443046,-500.0,0.0001178,2]
[327068720,1715777443056,-535.98,0.0001178,2]
[327068722,1715777443066,-503.59945844,0.0001178,2]
[327068724,1715777443075,-872.83,0.0001178,2]
[327068726,1715777443088,-46.38128384,0.0001178,2]
[327068734,1715777443123,-453.61871616,0.0001178,2]
[327068737,1715777443132,-500.0,0.0001178,2]
[327068740,1715777443142,-500.0,0.0001178,2]
[327068743,1715777443155,-500.0,0.0001178,2]
[327068745,1715777443164,-500.0,0.0001178,2]
[327068747,1715777443173,-291.63,0.0001178,2]
[327068749,1715777443182,-500.0,0.0001178,2]
[327068751,1715777443192,-500.0,0.0001178,2]
[327068753,1715777443201,-451.48,0.0001178,2]
[327068755,1715777443210,-151.0,0.0001178,2]
[327068757,1715777443220,-500.0,0.0001178,2]
[327068759,1715777443229,-500.0,0.0001178,2]
[327068761,1715777443238,-297.15098212,0.0001178,2]
[327068766,1715777443281,-202.84901788,0.0001178,2]
[327068768,1715777443291,-1869.76,0.0001178,2]
[327068770,1715777443300,-500.0,0.0001178,2]
[327068772,1715777443309,-500.0,0.0001178,2]
[327068774,1715777443319,-596.48449226,0.0001178,2]
[327068776,1715777443328,-500.0,0.0001178,2]
[327068778,1715777443338,-642.64,0.0001178,2]
[327068780,1715777443347,-607.91428104,0.0001178,2]
[327068782,1715777443356,-500.0,0.0001178,2]
[327068784,1715777443365,-500.0,0.0001178,2]
[327068786,1715777443374,-500.0,0.0001178,2]
[327068788,1715777443384,-942.44,0.0001178,2]
[327068790,1715777443393,-500.0,0.0001178,2]
[327068792,1715777443407,-500.0,0.0001178,2]
[327068794,1715777443416,-500.0,0.0001178,2]
[327068796,1715777443425,-151.0,0.0001178,2]
[327068798,1715777443434,-500.0,0.0001178,2]
[327068800,1715777443444,-17.66221715,0.0001178,2]
[327068802,1715777443456,-482.33778285,0.0001178,2]
[327068804,1715777443466,-500.0,0.0001178,2]
[327068806,1715777443475,-500.0,0.0001178,2]
[327068808,1715777443485,-524.7622627,0.0001178,2]
[327068810,1715777443494,-500.0,0.0001178,2]
[327068812,1715777443504,-522.62025086,0.0001178,2]
[327068814,1715777443513,-500.0,0.0001178,2]
[327068816,1715777443522,-500.0,0.0001178,2]
[327068818,1715777443531,-334.79248229,0.0001178,2]
[327068821,1715777443543,-165.20751771,0.0001178,2]
[327068823,1715777443552,-88.23746127,0.0001178,2]
[327068825,1715777443564,-345.91147168,0.0001178,2]
[327068827,1715777443575,-65.85106705,0.0001178,2]
[327068829,1715777443584,-500.0,0.0001178,2]
[327068831,1715777443594,-233.61347995,0.0001178,2]
[327068833,1715777443605,-266.38652005,0.0001178,2]
[327068835,1715777443614,-64.1495804,0.0001178,2]
[327068837,1715777443626,-435.8504196,0.0001178,2]
[327068839,1715777443635,-500.0,0.0001178,2]
[327068841,1715777443644,-108.55656116,0.0001178,2]
[327068863,1715777443977,-391.44343884,0.0001178,2]
[327068866,1715777443986,-500.0,0.0001178,2]
[327068869,1715777443995,-500.0,0.0001178,2]
[327068872,1715777444004,-294.90044969,0.0001178,2]
[327068875,1715777444014,-500.0,0.0001178,2]
[327068878,1715777444023,-500.0,0.0001178,2]
[327068881,1715777444033,-500.0,0.0001178,2]
[327068884,1715777444043,-500.0,0.0001178,2]
[327068886,1715777444052,-500.0,0.0001178,2]
[327068888,1715777444062,-429.13873074,0.0001178,2]
[327068890,1715777444080,-70.86126926,0.0001178,2]
[327068893,1715777444090,-500.0,0.0001178,2]
[327068895,1715777444101,-500.0,0.0001178,2]
[327068897,1715777444111,-500.0,0.0001178,2]
[327068899,1715777444120,-500.0,0.0001178,2]
[327068901,1715777444130,-500.0,0.0001178,2]
[327068903,1715777444139,-500.0,0.0001178,2]
[327068905,1715777444153,-576.82514444,0.0001178,2]
[327068907,1715777444163,-500.0,0.0001178,2]
[327068909,1715777444172,-500.0,0.0001178,2]
[327068911,1715777444181,-500.0,0.0001178,2]
[327068913,1715777444190,-409.92430238,0.0001178,2]
[327068915,1715777444200,-500.0,0.0001178,2]
[327068917,1715777444210,-513.04,0.0001178,2]
[327068919,1715777444219,-625.31,0.0001178,2]
[327068921,1715777444229,-500.0,0.0001178,2]
[327068923,1715777444238,-1672.14,0.0001178,2]
[327068925,1715777444249,-1202.37,0.0001178,2]
[327068927,1715777444258,-500.0,0.0001178,2]
[327068929,1715777444268,-500.0,0.0001178,2]
[327068931,1715777444277,-393.82,0.0001178,2]
[327068933,1715777444286,-500.0,0.0001178,2]
[327068935,1715777444296,-267.689563,0.0001178,2]
[327068937,1715777444305,-500.0,0.0001178,2]
[327068939,1715777444314,-500.0,0.0001178,2]
[327068941,1715777444323,-267.689563,0.0001178,2]
[327068943,1715777444333,-266.199742,0.0001178,2]
[327068945,1715777444343,-200.0,0.00011787,2]
[327068947,1715777444354,-151.0,0.00011789,2]
[327068949,1715777444363,-151.0,0.00011789,2]
[327068951,1715777444373,-151.0,0.00011789,2]
[327068953,1715777444382,-151.0,0.00011789,2]
[327068955,1715777444392,-151.0,0.00011789,2]
[327068957,1715777444404,-242.049358,0.00011789,2]
[327068959,1715777444413,-151.0,0.00011789,2]
[327068961,1715777444423,-266.199742,0.00011789,2]
[327068963,1715777444433,-22131.04853668,0.00011789,2]
[327068965,1715777444443,-500.0,0.00011792,2]
[327068967,1715777444453,-510.74,0.00011792,2]
[327068969,1715777444462,-202.29116156,0.00011792,2]
[327068971,1715777444474,-542.56883844,0.00011792,2]
[327068973,1715777444483,-53.79763237,0.00011792,2]
[327068981,1715777444548,-673.62236763,0.00011792,2]
[327068983,1715777444558,-500.0,0.00011792,2]
[327068985,1715777444568,-374.71,0.00011792,2]
[327068987,1715777444577,-500.0,0.00011792,2]
[327068989,1715777444587,-608.20480907,0.00011792,2]
[327068992,1715777444598,-187.37519093,0.00011792,2]
[327068994,1715777444607,-517.80445597,0.00011792,2]
[327068996,1715777444619,-587.99554403,0.00011792,2]
[327068998,1715777444628,-499.29445597,0.00011792,2]
[327069004,1715777444676,-0.70554403,0.00011792,2]
[327069006,1715777444685,-129.19699658,0.00011792,2]
[327069008,1715777444698,-370.80300342,0.00011792,2]
[327069010,1715777444707,-2207.64,0.00011792,2]
[327069012,1715777444717,-500.0,0.00011792,2]
[327069014,1715777444727,-612.790409,0.00011792,2]
[327069016,1715777444739,-260.039591,0.00011792,2]
[327069018,1715777444748,-500.0,0.00011792,2]
[327069020,1715777444758,-1869.76,0.00011792,2]
[327069022,1715777444767,-500.0,0.00011792,2]
[327069024,1715777444776,-500.0,0.00011792,2]
[327069026,1715777444785,-500.0,0.00011792,2]
[327069028,1715777444795,-500.0,0.00011792,2]
[327069030,1715777444804,-500.0,0.00011792,2]
[327069032,1715777444813,-500.0,0.00011792,2]
[327069034,1715777444822,-1003.627509,0.00011792,2]
[327069037,1715777444835,-198.742491,0.00011792,2]
[327069038,1715777444844,-82.444251,0.00011792,2]
[327069042,1715777444867,-417.555749,0.00011792,2]
[327069044,1715777444877,-380.88876898,0.00011792,2]
[327069046,1715777444887,-500.0,0.00011792,2]
[327069048,1715777444896,-500.0,0.00011792,2]
[327069050,1715777444907,-42.84092031,0.00011793,2]
[327069052,1715777444919,-457.15907969,0.00011793,2]
[327069054,1715777444928,-642.15073055,0.00011793,2]
[327069056,1715777444937,-151.0,0.00011793,2]
[327069058,1715777444947,-151.0,0.00011793,2]
[327069060,1715777444956,-379.59808524,0.00011793,2]
[327069063,1715777444968,-178.54521833,0.00011793,2]
[327069065,1715777444977,-331.95,0.00011793,2]
[327069067,1715777444986,-500.0,0.00011793,2]
[327069069,1715777444996,-500.0,0.00011793,2]
[327069071,1715777445005,-344.24093195,0.00011793,2]
[327069073,1715777445015,-326.68044559,0.00011793,2]
[327069075,1715777445024,-500.0,0.00011793,2]
[327069077,1715777445033,-500.0,0.00011793,2]
[327069079,1715777445042,-177.08878122,0.00011793,2]
[327069081,1715777445054,-322.91121878,0.00011793,2]
[327069083,1715777445065,-83.27146332,0.00011793,2]
[327069085,1715777445077,-416.72853668,0.00011793,2]
[327069087,1715777445090,-500.0,0.00011793,2]
[327069089,1715777445099,-386.31,0.00011793,2]
[327069091,1715777445108,-253.85,0.00011793,2]
[327069093,1715777445117,-500.0,0.00011793,2]
[327069095,1715777445127,-1624.77,0.00011793,2]
[327069097,1715777445137,-500.0,0.00011793,2]
[327069099,1715777445146,-173.8,0.00011793,2]
[327069101,1715777445159,-151.0,0.00011793,2]
[327069103,1715777445168,-500.0,0.00011793,2]
[327069105,1715777445177,-151.0,0.00011793,2]
[327069107,1715777445186,-500.0,0.00011793,2]
[327069109,1715777445195,-386.27,0.00011793,2]
[327069111,1715777445205,-420.02125956,0.00011793,2]
[327069113,1715777445214,-500.0,0.00011793,2]
[327069115,1715777445224,-500.0,0.00011793,2]
[327069117,1715777445233,-500.0,0.00011793,2]
[327069119,1715777445243,-500.0,0.00011793,2]
[327069121,1715777445253,-500.0,0.00011793,2]
[327069123,1715777445263,-500.0,0.00011793,2]
[327069125,1715777445273,-500.0,0.00011793,2]
[327069127,1715777445284,-151.0,0.00011793,2]
[327069129,1715777445293,-500.0,0.00011793,2]
[327069131,1715777445302,-500.0,0.00011793,2]
[327069133,1715777445311,-151.0,0.00011793,2]
[327069135,1715777445321,-500.0,0.00011793,2]
[327069137,1715777445330,-500.0,0.00011793,2]
[327069139,1715777445339,-500.0,0.00011793,2]
[327069141,1715777445348,-884.81,0.00011793,2]
[327069143,1715777445358,-518.73977334,0.00011793,2]
[327069145,1715777445368,-500.0,0.00011793,2]
[327069147,1715777445377,-151.0,0.00011793,2]
[327069149,1715777445388,-151.5222038,0.00011793,2]
[327069151,1715777445397,-500.0,0.00011793,2]
[327069154,1715777445409,-268.417667,0.00011793,2]
[327069156,1715777445418,-500.0,0.00011793,2]
[327069158,1715777445427,-500.0,0.00011793,2]
[327069160,1715777445435,-500.0,0.00011793,2]
[327069161,1715777445444,-385.37,0.00011793,2]
[327069163,1715777445453,-19.39571611,0.00011793,2]
[327069166,1715777445465,-480.60428389,0.00011793,2]
[327069168,1715777445474,-500.0,0.00011793,2]
[327069170,1715777445483,-2380.058273,0.00011793,2]
[327069172,1715777445492,-2380.058273,0.00011793,2]
[327069174,1715777445502,-502.894478,0.00011793,2]
[327069176,1715777445511,-502.894478,0.00011793,2]
[327069178,1715777445520,-934.2,0.00011793,2]
[327069180,1715777445530,-500.0,0.00011793,2]
[327069182,1715777445539,-500.0,0.00011793,2]
[327069184,1715777445548,-500.0,0.00011793,2]
[327069186,1715777445558,-500.0,0.00011793,2]
[327069188,1715777445567,-574.47,0.00011793,2]
[327069190,1715777445576,-304.354862,0.00011793,2]
[327069192,1715777445585,-500.0,0.00011793,2]
[327069194,1715777445594,-304.354862,0.00011793,2]
[327069196,1715777445604,-500.0,0.00011793,2]
[327069198,1715777445614,-500.0,0.00011793,2]
[327069200,1715777445624,-500.0,0.00011793,2]
[327069202,1715777445633,-500.0,0.00011793,2]
[327069204,1715777445642,-500.0,0.00011793,2]
[327069206,1715777445654,-942.44,0.00011793,2]
[327069208,1715777445664,-500.0,0.00011793,2]
[327069210,1715777445674,-500.0,0.00011793,2]
[327069212,1715777445684,-500.0,0.00011793,2]
[327069214,1715777445693,-500.0,0.00011793,2]
[327069216,1715777445703,-500.0,0.00011793,2]
[327069218,1715777445711,-500.0,0.00011793,2]
[327069220,1715777445720,-1672.14,0.00011793,2]
[327069222,1715777445729,-500.0,0.00011794,2]
[327069224,1715777445739,-500.0,0.00011794,2]
[327069226,1715777445748,-564.13,0.00011794,2]
[327069228,1715777445757,-151.0,0.00011794,2]
[327069230,1715777445767,-151.0,0.00011794,2]
[327069232,1715777445776,-151.0,0.00011794,2]
[327069234,1715777445786,-151.0,0.00011794,2]
[327069236,1715777445795,-159.007682,0.00011794,2]
[327069238,1715777445804,-151.0,0.00011794,2]
[327069240,1715777445814,-500.0,0.00011794,2]
[327069243,1715777445823,-151.0,0.00011794,2]
[327069245,1715777445833,-151.0,0.00011794,2]
[327069248,1715777445842,-274.070019,0.00011794,2]
[327069250,1715777445851,-151.0,0.00011794,2]
[327069252,1715777445861,-151.0,0.00011794,2]
[327069254,1715777445870,-229.74070386,0.00011794,2]
[327069263,1715777445944,-267.689563,0.0001178,2]
[327069265,1715777445953,-46.45271331,0.0001178,2]
[327069267,1715777445965,-221.23684969,0.0001178,2]
[327069269,1715777445974,-270.25929614,0.00011794,2]
[327069271,1715777445983,-151.0,0.00011794,2]
[327069273,1715777445992,-151.0,0.00011794,2]
[327069275,1715777446001,-151.0,0.00011794,2]
[327069277,1715777446010,-151.0,0.00011794,2]
[327069279,1715777446019,-151.0,0.00011794,2]
[327069281,1715777446029,-151.0,0.00011794,2]
[327069283,1715777446038,-151.0,0.00011794,2]
[327069285,1715777446047,-151.0,0.00011794,2]
[327069287,1715777446056,-151.0,0.00011794,2]
[327069289,1715777446066,-735.373921,0.00011794,2]
[327069291,1715777446080,-658.056904,0.00011794,2]
[327069293,1715777446090,-658.056904,0.00011794,2]
[327069295,1715777446100,-151.0,0.00011794,2]
[327069297,1715777446110,-335.903499,0.00011794,2]
[327069299,1715777446119,-335.903499,0.00011794,2]
[327069301,1715777446129,-151.0,0.00011794,2]
[327069303,1715777446138,-267.689563,0.00011794,2]
[327069305,1715777446148,-267.689563,0.00011794,2]
[327069307,1715777446163,-417.3176759,0.00011797,2]
[327069309,1715777446171,-150.0,0.000118,2]
[327069311,1715777446180,-296.653335,0.000118,2]
[327069313,1715777446189,-112.28615241,0.000118,2]
[327069317,1715777446215,-42.02000559,0.000118,2]
[327069319,1715777446226,-151.0,0.000118,2]
[327069321,1715777446237,-700.0,0.000118,4]
[327069324,1715777446247,-2380.058273,0.000118,2]
[327069326,1715777446256,-2380.058273,0.000118,2]
[327069328,1715777446266,-502.894478,0.000118,2]
[327069330,1715777446276,-502.894478,0.000118,2]
[327069332,1715777446285,-304.354862,0.000118,2]
[327069333,1715777446294,-218.979978,0.000118,2]
[327069334,1715777446303,-304.354862,0.000118,2]
[327069335,1715777446312,-151.0,0.000118,2]
[327069336,1715777446322,-266.199742,0.000118,2]
[327069337,1715777446331,-6602.40140636,0.000118,2]
[327069338,1715777446346,-1473.36299427,0.000118,2]
[327069339,1715777446358,-14055.28413605,0.000118,2]
[327069340,1715777446368,-170.144,0.00011804,2]
[327069341,1715777446377,-371.654,0.00011804,2]
[327069342,1715777446387,-421.0,0.00011804,2]
[327069343,1715777446396,-438.0,0.00011804,2]
[327069345,1715777446411,-1464.0,0.00011804,2]
[327069346,1715777446420,-151.0,0.00011811,2]
[327069348,1715777446429,-151.0,0.00011811,2]
[327069350,1715777446438,-151.0,0.00011811,2]
[327069352,1715777446448,-151.0,0.00011811,2]
[327069354,1715777446457,-151.0,0.00011811,2]
[327069356,1715777446467,-151.0,0.00011811,2]
[327069358,1715777446476,-151.0,0.00011811,2]
[327069360,1715777446485,-22131.04853668,0.00011811,2]
[327069362,1715777446495,-205.41424698,0.00011812,2]
[327069364,1715777446504,-151.0,0.00011822,2]
[327069366,1715777446514,-151.0,0.00011822,2]
[327069368,1715777446523,-151.0,0.00011822,2]
[327069370,1715777446532,-404.92646325,0.00011822,2]
[327069373,1715777446552,-330.44745775,0.00011822,2]
[327069375,1715777446561,-658.056904,0.00011822,2]
[327069377,1715777446570,-658.056904,0.00011822,2]
[327069379,1715777446580,-151.0,0.00011822,2]
[327069381,1715777446589,-164.1411626,0.00011822,2]
[327069384,1715777446600,-171.7623364,0.00011822,2]
[327069386,1715777446609,-335.903499,0.00011822,2]
[327069388,1715777446619,-11.0259904,0.00011822,2]
[327069391,1715777446642,-500.0,0.0001178,2]
[327069393,1715777446653,-139.9740096,0.00011822,2]
[327069395,1715777446662,-263.8399904,0.00011822,2]
[327069397,1715777446674,-3.8495726,0.00011822,2]
[327069399,1715777446684,-267.689563,0.00011822,2]
[327069401,1715777446692,-890.4458644,0.00011822,2]
[327069466,1715777447142,-1650.14940854,0.0001166,2]
[327069468,1715777447155,-94448.10669146,0.0001166,2]
[327069470,1715777447164,-266.199742,0.0001178,2]
[327069472,1715777447174,-500.0,0.0001178,2]
[327069474,1715777447184,-21240.60267228,0.00011822,2]
[327069476,1715777447194,-22131.04853668,0.00011833,2]
[327069478,1715777447203,-500.0,0.00011834,2]
[327069480,1715777447212,-394.60991649,0.00011834,2]
[327069482,1715777447222,-500.0,0.00011834,2]
[327069484,1715777447231,-500.0,0.00011834,2]
[327069486,1715777447241,-500.0,0.00011834,2]
[327069488,1715777447250,-425.75,0.00011834,2]
[327069490,1715777447259,-151.0,0.00011834,2]
[327069492,1715777447269,-500.0,0.00011834,2]
[327069494,1715777447278,-554.85921852,0.00011834,2]
[327069496,1715777447287,-500.0,0.00011834,2]
[327069498,1715777447297,-226.74837119,0.00011834,2]
[327069500,1715777447306,-500.0,0.00011834,2]
[327069502,1715777447315,-359.87,0.00011834,2]
[327069504,1715777447325,-500.0,0.00011834,2]
[327069506,1715777447334,-500.0,0.00011834,2]
[327069508,1715777447344,-632.58,0.00011834,2]
[327069510,1715777447353,-500.0,0.00011834,2]
[327069512,1715777447363,-500.0,0.00011834,2]
[327069514,1715777447372,-500.0,0.00011834,2]
[327069516,1715777447382,-500.0,0.00011834,2]
[327069518,1715777447393,-500.0,0.00011834,2]
[327069520,1715777447405,-500.0,0.00011834,2]
[327069522,1715777447414,-1053.82,0.00011834,2]
[327069524,1715777447424,-500.0,0.00011834,2]
[327069526,1715777447433,-500.0,0.00011834,2]
[327069528,1715777447442,-500.0,0.00011834,2]
[327069530,1715777447452,-500.0,0.00011834,2]
[327069532,1715777447462,-500.0,0.00011834,2]
[327069534,1715777447471,-500.0,0.00011834,2]
[327069536,1715777447481,-157.21374096,0.00011834,2]
[327069538,1715777447491,-500.0,0.00011834,2]
[327069540,1715777447500,-500.0,0.00011834,2]
[327069542,1715777447510,-1327.38,0.00011834,2]
[327069544,1715777447519,-500.0,0.00011834,2]
[327069546,1715777447529,-500.0,0.00011834,2]
[327069548,1715777447539,-500.0,0.00011834,2]
[327069550,1715777447548,-2380.058273,0.00011834,2]
[327069552,1715777447558,-500.0,0.00011834,2]
[327069555,1715777447569,-2380.058273,0.00011834,2]
[327069556,1715777447579,-502.894478,0.00011834,2]
[327069559,1715777447589,-502.894478,0.00011834,2]
[327069561,1715777447599,-500.0,0.00011834,2]
[327069563,1715777447609,-500.0,0.00011834,2]
[327069565,1715777447619,-523.96931295,0.00011834,2]
[327069567,1715777447629,-543.68822464,0.00011834,2]
[327069569,1715777447639,-304.354862,0.00011834,2]
[327069571,1715777447648,-500.0,0.00011834,2]
[327069572,1715777447659,-304.354862,0.00011834,2]
[327069575,1715777447669,-506.01,0.00011834,2]
[327069577,1715777447678,-500.0,0.00011834,2]
[327069579,1715777447687,-500.0,0.00011834,2]
[327069581,1715777447697,-500.0,0.00011834,2]
[327069582,1715777447707,-500.0,0.00011834,2]
[327069585,1715777447716,-500.0,0.00011834,2]
[327069587,1715777447726,-500.0,0.00011834,2]
[327069589,1715777447736,-500.0,0.00011834,2]
[327069591,1715777447745,-151.0,0.00011834,2]
[327069593,1715777447755,-500.0,0.00011834,2]
[327069595,1715777447764,-500.0,0.00011834,2]
[327069597,1715777447773,-500.0,0.00011834,2]
[327069598,1715777447783,-500.0,0.00011834,2]
[327069601,1715777447792,-193.57,0.00011834,2]
[327069603,1715777447802,-266.199742,0.00011834,2]
[327069605,1715777447811,-151.0,0.00011835,2]
[327069606,1715777447820,-151.0,0.00011835,2]
[327069609,1715777447830,-151.0,0.00011835,2]
[327069610,1715777447839,-151.0,0.00011835,2]
[327069612,1715777447848,-151.0,0.00011835,2]
[327069615,1715777447858,-800.0,0.00011836,2]
[327069616,1715777447867,-22131.04853668,0.00011845,2]
[327069619,1715777447877,-151.0,0.00011845,2]
[327069620,1715777447888,-151.0,0.00011845,2]
[327069622,1715777447898,-658.056904,0.00011845,2]
[327069625,1715777447910,-658.056904,0.00011845,2]
[327069627,1715777447920,-151.0,0.00011845,2]
[327069628,1715777447929,-335.903499,0.00011845,2]
[327069631,1715777447938,-335.903499,0.00011845,2]
[327069633,1715777447948,-151.0,0.00011845,2]
[327069634,1715777447956,-267.689563,0.00011845,2]
[327069636,1715777447966,-267.689563,0.00011845,2]
[327069638,1715777447975,-417.31767589,0.00011849,2]
[327069640,1715777447984,-22131.04853668,0.00011856,2]
[327069642,1715777447993,-500.0,0.00011866,2]
[327069644,1715777448002,-510.74,0.00011866,2]
[327069646,1715777448012,-744.86,0.00011866,2]
[327069648,1715777448021,-727.42,0.00011866,2]
[327069650,1715777448030,-500.0,0.00011866,2]
[327069652,1715777448039,-500.0,0.00011866,2]
[327069654,1715777448048,-795.58,0.00011866,2]
[327069656,1715777448057,-1105.8,0.00011866,2]
[327069658,1715777448067,-500.0,0.00011866,2]
[327069661,1715777448083,-500.0,0.00011866,2]
[327069663,1715777448093,-2207.64,0.00011866,2]
[327069664,1715777448103,-500.0,0.00011866,2]
[327069666,1715777448113,-872.83,0.00011866,2]
[327069668,1715777448124,-500.0,0.00011866,2]
[327069670,1715777448134,-1869.76,0.00011866,2]
[327069672,1715777448143,-500.0,0.00011866,2]
[327069675,1715777448157,-500.0,0.00011866,2]
[327069677,1715777448167,-500.0,0.00011866,2]
[327069679,1715777448176,-500.0,0.00011866,2]
[327069681,1715777448185,-500.0,0.00011866,2]
[327069683,1715777448194,-500.0,0.00011866,2]
[327069685,1715777448204,-1202.37,0.00011866,2]
[327069686,1715777448213,-163.81,0.00011866,2]
[327069687,1715777448222,-457.53,0.00011866,2]
[327069688,1715777448231,-500.0,0.00011866,2]
[327069689,1715777448239,-15334.94826597,0.00011867,2]
[327069690,1715777448252,-6796.10027071,0.00011867,2]
[327069691,1715777448261,-150.0,0.00011867,2]
[327069692,1715777448271,-512.56160257,0.00011867,2]
[327069693,1715777448281,-500.0,0.00011867,2]
[327069694,1715777448290,-500.0,0.00011867,2]
[327069695,1715777448300,-500.0,0.00011867,2]
[327069696,1715777448309,-500.0,0.00011867,2]
[327069697,1715777448318,-500.0,0.00011867,2]
[327069698,1715777448327,-353.62,0.00011867,2]
[327069699,1715777448336,-500.0,0.00011867,2]
[327069700,1715777448346,-500.0,0.00011867,2]
[327069701,1715777448354,-500.0,0.00011867,2]
[327069702,1715777448364,-378.8,0.00011867,2]
[327069703,1715777448374,-2380.058273,0.00011867,2]
[327069704,1715777448385,-2380.058273,0.00011867,2]
[327069705,1715777448394,-502.894478,0.00011867,2]
[327069706,1715777448406,-934.2,0.00011867,2]
[327069707,1715777448415,-502.894478,0.00011867,2]
[327069708,1715777448424,-500.0,0.00011867,2]
[327069709,1715777448433,-304.354862,0.00011867,2]
[327069710,1715777448442,-646.95,0.00011867,2]
[327069711,1715777448451,-304.354862,0.00011867,2]
[327069712,1715777448460,-500.0,0.00011867,2]
[327069713,1715777448470,-151.0,0.00011867,2]
[327069714,1715777448479,-500.0,0.00011867,2]
[327069715,1715777448488,-500.0,0.00011867,2]
[327069716,1715777448497,-266.199742,0.00011867,2]
[327069717,1715777448506,-3578.90368179,0.00011867,2]
[327069718,1715777448515,-1393.58,0.00011868,2]
[327069719,1715777448524,-500.0,0.00011868,2]
[327069720,1715777448534,-800.24,0.00011868,2]
[327069721,1715777448543,-806.99,0.00011868,2]
[327069722,1715777448552,-553.00864501,0.00011868,2]
[327069723,1715777448562,-500.0,0.00011868,2]
[327069724,1715777448572,-537.3,0.00011868,2]
[327069725,1715777448581,-500.0,0.00011868,2]
[327069726,1715777448590,-389.08121994,0.00011868,2]
[327069727,1715777448616,-372.20888085,0.00011868,2]
[327069728,1715777448627,-202.35989921,0.00011868,2]
[327069729,1715777448636,-105.14767732,0.00011868,2]
[327069730,1715777448648,-45.85232268,0.00011868,2]
[327069732,1715777448662,-228.660453,0.00011868,2]
[327069734,1715777448671,-426.91,0.00011868,2]
[327069736,1715777448680,-151.0,0.00011868,2]
[327069738,1715777448689,-500.0,0.00011868,2]
[327069739,1715777448699,-339.32,0.00011868,2]
[327069740,1715777448708,-500.0,0.00011868,2]
[327069741,1715777448717,-500.0,0.00011868,2]
[327069742,1715777448727,-487.59875694,0.00011868,2]
[327069743,1715777448737,-500.0,0.00011868,2]
[327069744,1715777448746,-500.0,0.00011868,2]
[327069745,1715777448755,-500.0,0.00011868,2]
[327069746,1715777448764,-575.7,0.00011868,2]
[327069747,1715777448773,-500.0,0.00011868,2]
[327069748,1715777448781,-500.0,0.00011868,2]
[327069749,1715777448791,-151.0,0.00011868,2]
[327069750,1715777448800,-161.192506,0.00011868,2]
[327069751,1715777448809,-152.89563987,0.00011868,2]
[327069752,1715777448857,-266.199742,0.00011789,2]
[327069753,1715777448865,-493.06383884,0.00011792,2]
[327069754,1715777448876,-6.93616116,0.00011792,2]
[327069755,1715777448886,-347.10436013,0.00011868,2]
[327069756,1715777448896,-626.28980376,0.00011868,2]
[327069757,1715777448909,-500.0,0.00011868,2]
[327069758,1715777448919,-500.0,0.00011868,2]
[327069759,1715777448929,-500.0,0.00011868,2]
[327069760,1715777448939,-500.0,0.00011868,2]
[327069761,1715777448948,-149.81967495,0.00011868,2]
[327069762,1715777449165,-350.18032505,0.00011868,2]